[Event "Caplin Hastings Masters 2023-24"]
[Site "Hastings"]
[Date "2024.01.04"]
[Round "8.13"]
[White "Gormally, Daniel W"]
[Black "Beaumont, Chris R"]
[Result "1-0"]
[ECO "B06"]
[WhiteElo "2442"]
[BlackElo "2236"]
[Annotator "RC"]
[PlyCount "51"]
[EventDate "2023.12.18"]
[EventType "swiss"]
[EventCountry "ENG"]
[SourceTitle "playchess.com"]
[Source "ChessBase"]
[SourceQuality "1"]
[TimeControl "40/6000+30:3000+30"]

1. e4 {[%emt 0:00:05]} d6 {[%emt 0:00:30]} 2. d4 {[%emt 0:00:17]} Nf6 {[%emt 0:00:35]} 3. Nc3 {[%emt 0:00:30]} g6 {[%emt 0:00:08]} 4. Be3 {[%emt 0:00:07]} a6 {[%emt 0:00:17]} 5. a4 {[%emt 0:01:33]} Bg7 {[%emt 0:00:27]} 6. Qd2 {[%emt 0:00:31]} Nc6 {[%emt 0:01:26]} 7. d5 {[%emt 0:10:00]} Ne5 {[%emt 0:01:08]} 8. h3 {[%emt 0:02:15]} c6 {[%emt 0:02:23]} 9. a5 {[%emt 0:00:02]} Ned7 {[%emt 0:00:29]} 10. g4 {[%emt 0:03:50]} cxd5 {[%emt 0:10:38]} 11. exd5 {[%emt 0:00:07]} b6 {[%emt 0:01:08]} 12. Nge2 {[%emt 0:04:07]} Bb7 {[%emt 0:11:41]} 13. Bg2 {[%emt 0:01:10]} e5 {[%emt 0:18:43]} 14. g5 {[%emt 0:12:13]} Nh5 {[%emt 0:15:24]} 15. Ne4 {[%emt 0:00:05]} Nc5 {[%emt 0:01:06]} 16. axb6 {[%emt 0:00:15]} Nxe4 {[%emt 0:12:35]} 17. Bxe4 {[%emt 0:00:06]} O-O {[%emt 0:00:12]} 18. Ng3 {[%emt 0:00:50]} Nf4 {[%emt 0:01:09]} 19. h4 {[%emt 0:00:07]} Qd7 {[%emt 0:08:15]} 20. c4 {[%emt 0:07:28]} a5 {[%emt 0:06:12]} 21. Rxa5 {[%emt 0:09:02]} Rxa5 {[%emt 0:00:08]} 22. Qxa5 {[%emt 0:00:03]} Ra8 {[%emt 0:00:29]} 23. Qc3 {[%emt 0:00:15]} Qg4 {[%emt 0:06:10]} 24. Kd2 {[%emt 0:02:00]} f5 {[%emt 0:03:09]} 25. gxf6 {[%emt 0:04:36]} Bxf6 {[%emt 0:00:15]} 26. Bc2 {[%emt 0:07:09]} 1-0

[Event "Caplin Hastings Masters 2023-24"]
[Site "Hastings"]
[Date "2024.01.04"]
[Round "8.14"]
[White "Boyer, Mahel"]
[Black "Ismail, Mohammed Aayan"]
[Result "1-0"]
[ECO "B12"]
[WhiteElo "2427"]
[BlackElo "2115"]
[Annotator "RC"]
[PlyCount "77"]
[EventDate "2023.12.18"]
[EventType "swiss"]
[EventCountry "ENG"]
[SourceTitle "playchess.com"]
[Source "ChessBase"]
[SourceQuality "1"]
[TimeControl "40/6000+30:3000+30"]

1. e4 {[%emt 0:04:20]} c6 {[%emt 0:00:07]} 2. d4 {[%emt 0:00:40]} d5 {[%emt 0:00:04]} 3. e5 {[%emt 0:00:06]} Bf5 {[%emt 0:00:08]} 4. Nf3 {[%emt 0:00:19]} e6 {[%emt 0:00:07]} 5. Be2 {[%emt 0:00:11]} Nd7 {[%emt 0:00:30]} 6. O-O {[%emt 0:00:10]} Ne7 {[%emt 0:02:38]} 7. a4 {[%emt 0:00:07]} Rc8 {[%emt 0:00:22]} 8. a5 {[%emt 0:21:10]} a6 {[%emt 0:01:38]} 9. b4 {[%emt 0:01:29]} h6 {[%emt 0:08:47]} 10. Ne1 {[%emt 0:12:25]} g5 {[%emt 0:09:58]} 11. f4 {[%emt 0:03:58]} gxf4 {[%emt 0:16:50]} 12. c3 {[%emt 0:02:59]} Ng6 {[%emt 0:02:55]} 13. Bd3 {[%emt 0:00:14]} Qg5 {[%emt 0:09:59]} 14. Bxf5 {[%emt 0:03:39]} Qxf5 {[%emt 0:00:41]} 15. Nd3 {[%emt 0:00:04]} Rg8 {[%emt 0:02:38]} 16. Bxf4 {[%emt 0:02:48]} Nxf4 {[%emt 0:00:55]} 17. Nxf4 {[%emt 0:00:20]} Rg4 {[%emt 0:12:06]} 18. Nh3 {[%emt 0:12:38]} Qg6 {[%emt 0:02:08]} 19. Ra2 {[%emt 0:00:38]} h5 {[%emt 0:03:06]} 20. Nf4 {[%emt 0:04:04]} Qg5 {[%emt 0:05:00]} 21. Raf2 {[%emt 0:00:37]} Bh6 {[%emt 0:00:59]} 22. Qd3 {[%emt 0:11:26]} Nf8 {[%emt 0:03:23]} 23. Nd2 {[%emt 0:04:31]} Rc7 {[%emt 0:03:15]} 24. Nb3 {[%emt 0:00:40]} h4 {[%emt 0:07:31]} 25. Nc5 {[%emt 0:04:12]} Re7 {[%emt 0:04:03]} 26. Qe2 {[%emt 0:03:38]} Nh7 {[%emt 0:02:51]} 27. Kh1 {[%emt 0:03:23]} Kd8 {[%emt 0:03:30]} 28. Nh3 {[%emt 0:08:15]} Qg6 {[%emt 0:01:26]} 29. Rf3 {[%emt 0:00:24]} Ke8 {[%emt 0:02:04]} 30. Nxb7 {[%emt 0:03:30]} Rxb7 {[%emt 0:00:41]} 31. Qxa6 {[%emt 0:00:02]} Rd7 {[%emt 0:02:07]} 32. Qc8+ {[%emt 0:00:38]} Rd8 {[%emt 0:00:23]} 33. Qxc6+ {[%emt 0:00:02]} Kf8 {[%emt 0:00:33]} 34. Qc7 {[%emt 0:02:00]} Re8 {[%emt 0:00:38]} 35. Qxf7+ {[%emt 0:00:05]} Qxf7 {[%emt 0:00:04]} 36. Rxf7+ {[%emt 0:00:02]} Kg8 {[%emt 0:00:05]} 37. a6 {[%emt 0:00:00]} Ra8 {[%emt 0:01:00]} 38. b5 {[%emt 0:00:35]} Nf8 {[%emt 0:01:23]} 39. a7 {[%emt 0:00:21]} 1-0

[Event "Caplin Hastings Masters 2023-24"]
[Site "Hastings"]
[Date "2024.01.04"]
[Round "8.15"]
[White "Southcott-Moyers, Indy"]
[Black "Cherniaev, Alexander"]
[Result "0-1"]
[ECO "A55"]
[WhiteElo "2123"]
[BlackElo "2381"]
[Annotator "RC"]
[PlyCount "100"]
[EventDate "2023.12.18"]
[EventType "swiss"]
[EventCountry "ENG"]
[SourceTitle "playchess.com"]
[Source "ChessBase"]
[SourceQuality "1"]
[TimeControl "40/6000+30:3000+30"]

1. d4 {[%emt 0:00:04]} Nf6 {[%emt 0:00:28]} 2. c4 {[%emt 0:00:10]} d6 {[%emt 0:00:08]} 3. Nf3 {[%emt 0:00:08]} Nbd7 {[%emt 0:00:25]} 4. Nc3 {[%emt 0:01:42]} c6 {[%emt 0:00:20]} 5. e4 {[%emt 0:02:11]} e5 {[%emt 0:00:07]} 6. Be2 {[%emt 0:00:18]} Be7 {[%emt 0:00:06]} 7. O-O {[%emt 0:01:19]} a6 {[%emt 0:00:06]} 8. a4 {[%emt 0:04:05]} a5 {[%emt 0:00:22]} 9. Re1 {[%emt 0:04:20]} O-O {[%emt 0:00:11]} 10. Bf1 {[%emt 0:01:10]} Re8 {[%emt 0:00:18]} 11. Qc2 {[%emt 0:16:27]} Bf8 {[%emt 0:00:17]} 12. Be3 {[%emt 0:07:33]} Ng4 {[%emt 0:02:02]} 13. Bg5 {[%emt 0:02:23]} f6 {[%emt 0:11:18]} 14. Bh4 {[%emt 0:05:08]} Nh6 {[%emt 0:03:57]} 15. h3 {[%emt 0:06:25]} Nf7 {[%emt 0:00:14]} 16. Rad1 {[%emt 0:02:25]} g6 {[%emt 0:09:02]} 17. Na2 {[%emt 0:09:22]} Qe7 {[%emt 0:16:22]} 18. Nc3 {[%emt 0:08:45]} Qd8 {[%emt 0:11:07]} 19. Na2 {[%emt 0:03:09]} Bg7 {[%emt 0:00:09]} 20. Nc1 {[%emt 0:04:16]} Qe7 {[%emt 0:04:07]} 21. Nb3 {[%emt 0:02:16]} c5 {[%emt 0:00:26]} 22. dxc5 {[%emt 0:07:03]} dxc5 {[%emt 0:00:09]} 23. Nbd2 {[%emt 0:02:19]} Nd8 {[%emt 0:05:00]} 24. Nb1 {[%emt 0:02:00]} Nc6 {[%emt 0:00:06]} 25. Nc3 {[%emt 0:00:51]} Nf8 {[%emt 0:01:50]} 26. Nd5 {[%emt 0:01:31]} Qf7 {[%emt 0:00:02]} 27. Nh2 {[%emt 0:02:27]} h5 {[%emt 0:05:27]} 28. f3 {[%emt 0:00:17]} Ne6 {[%emt 0:00:06]} 29. Bd3 {[%emt 0:02:38]} Ned4 {[%emt 0:01:56]} 30. Qc3 {[%emt 0:01:21]} Nb4 {[%emt 0:02:02]} 31. Bb1 {[%emt 0:03:26]} Ra6 {[%emt 0:00:18]} 32. Bf2 {[%emt 0:01:56]} f5 {[%emt 0:01:29]} 33. Qd2 {[%emt 0:03:17]} Nbc6 {[%emt 0:10:36]} 34. exf5 {[%emt 0:01:07]} gxf5 {[%emt 0:00:11]} 35. f4 {[%emt 0:01:57]} e4 {[%emt 0:00:08]} 36. Ba2 {[%emt 0:00:56]} Nb4 {[%emt 0:00:49]} 37. Nxb4 {[%emt 0:01:17]} axb4 {[%emt 0:00:10]} 38. b3 {[%emt 0:00:10]} Rd6 {[%emt 0:00:53]} 39. Qc1 {[%emt 0:00:42]} Red8 {[%emt 0:00:11]} 40. Kf1 {[%emt 0:00:42]} Bf6 {[%emt 0:06:08]} 41. h4 {[%emt 0:09:42]} Qd7 {[%emt 0:07:49]} 42. Bg3 {[%emt 0:13:17]} Qe7 {[%emt 0:01:22]} 43. Kf2 {[%emt 0:01:50]} Bxh4 {[%emt 0:03:05]} 44. Nf1 {[%emt 0:00:11]} Bxg3+ {[%emt 0:08:35]} 45. Nxg3 {[%emt 0:00:08]} Qh4 {[%emt 0:00:15]} 46. Rh1 {[%emt 0:02:43]} Qxg3+ {[%emt 0:00:13]} 47. Kxg3 {[%emt 0:00:05]} Ne2+ {[%emt 0:00:08]} 48. Kh4 {[%emt 0:00:34]} Nxc1 {[%emt 0:00:07]} 49. Rxc1 {[%emt 0:02:46]} Rd2 {[%emt 0:00:06]} 50. Bb1 {[%emt 0:00:52]} Rxg2 {[%emt 0:01:00]} 0-1

[Event "Caplin Hastings Masters 2023-24"]
[Site "Hastings"]
[Date "2024.01.04"]
[Round "8.16"]
[White "Bai, Xue"]
[Black "Arkell, Keith C"]
[Result "1-0"]
[ECO "B12"]
[WhiteElo "2099"]
[BlackElo "2371"]
[Annotator "RC"]
[PlyCount "213"]
[EventDate "2023.12.18"]
[EventType "swiss"]
[EventCountry "ENG"]
[SourceTitle "playchess.com"]
[Source "ChessBase"]
[SourceQuality "1"]
[TimeControl "40/6000+30:3000+30"]

1. e4 {[%emt 0:00:04]} c6 {[%emt 0:00:21]} 2. d4 {[%emt 0:00:06]} d5 {[%emt 0:00:03]} 3. e5 {[%emt 0:00:05]} c5 {[%emt 0:00:03]} 4. dxc5 {[%emt 0:00:29]} Nc6 {[%emt 0:00:40]} 5. Nf3 {[%emt 0:00:08]} Bg4 {[%emt 0:00:06]} 6. Be3 {[%emt 0:01:04]} e6 {[%emt 0:00:33]} 7. c3 {[%emt 0:00:23]} Bxf3 {[%emt 0:03:00]} 8. Qxf3 {[%emt 0:00:08]} Qc7 {[%emt 0:05:34]} 9. Bb5 {[%emt 0:04:26]} Qxe5 {[%emt 0:00:36]} 10. O-O {[%emt 0:00:26]} a6 {[%emt 0:07:34]} 11. Bxc6+ {[%emt 0:01:51]} bxc6 {[%emt 0:00:04]} 12. Nd2 {[%emt 0:00:37]} Nf6 {[%emt 0:09:07]} 13. Rfe1 {[%emt 0:04:59]} Qc7 {[%emt 0:01:43]} 14. Bd4 {[%emt 0:01:51]} Be7 {[%emt 0:00:23]} 15. b4 {[%emt 0:06:37]} O-O {[%emt 0:00:19]} 16. Qg3 {[%emt 0:35:34]} Qxg3 {[%emt 0:03:25]} 17. hxg3 {[%emt 0:00:06]} a5 {[%emt 0:00:33]} 18. a3 {[%emt 0:00:10]} Ra6 {[%emt 0:06:00]} 19. Nb3 {[%emt 0:04:17]} Nd7 {[%emt 0:01:14]} 20. f4 {[%emt 0:07:07]} Rfa8 {[%emt 0:00:50]} 21. f5 {[%emt 0:02:04]} e5 {[%emt 0:00:37]} 22. Nxa5 {[%emt 0:02:43]} Bd8 {[%emt 0:10:46]} 23. Bxe5 {[%emt 0:00:59]} Bxa5 {[%emt 0:06:54]} 24. Bd6 {[%emt 0:05:26]} Nf6 {[%emt 0:01:13]} 25. bxa5 {[%emt 0:00:08]} Rxa5 {[%emt 0:03:28]} 26. Reb1 {[%emt 0:12:35]} Nd7 {[%emt 0:05:22]} 27. Rb7 {[%emt 0:02:32]} Nxc5 {[%emt 0:06:30]} 28. Rc7 {[%emt 0:00:34]} Ne4 {[%emt 0:02:54]} 29. Rxc6 {[%emt 0:00:15]} h5 {[%emt 0:08:35]} 30. Bb4 {[%emt 0:01:21]} R5a7 {[%emt 0:01:35]} 31. Kh2 {[%emt 0:00:50]} Rd7 {[%emt 0:03:04]} 32. a4 {[%emt 0:01:31]} Nf2 {[%emt 0:09:03]} 33. a5 {[%emt 0:02:07]} d4 {[%emt 0:00:52]} 34. cxd4 {[%emt 0:01:32]} Rxd4 {[%emt 0:02:59]} 35. Be1 {[%emt 0:00:40]} Ng4+ {[%emt 0:01:04]} 36. Kg1 {[%emt 0:00:38]} Re4 {[%emt 0:04:05]} 37. a6 {[%emt 0:02:10]} Re2 {[%emt 0:00:11]} 38. Rcc1 {[%emt 0:01:16]} Kh7 {[%emt 0:02:58]} 39. Ra3 {[%emt 0:03:21]} Rae8 {[%emt 0:03:54]} 40. Raa1 {[%emt 0:01:51]} Ra8 {[%emt 0:01:37]} 41. Ra3 {[%emt 0:54:47]} Rc8 {[%emt 0:31:46]} 42. Bc3 {[%emt 0:00:00]} Re3 {[%emt 0:01:01]} 43. a7 {[%emt 0:00:00]} Ra8 {[%emt 0:00:07]} 44. Rca1 {[%emt 0:00:00]} Rd3 {[%emt 0:03:37]} 45. Be1 {[%emt 0:00:00]} Rd5 {[%emt 0:01:28]} 46. Ra5 {[%emt 0:00:00]} Rd4 {[%emt 0:01:56]} 47. Bc3 {[%emt 0:00:00]} Rd3 {[%emt 0:02:55]} 48. Bb4 {[%emt 0:00:00]} Rxg3 {[%emt 0:01:53]} 49. R1a3 {[%emt 0:00:00]} Rd8 {[%emt 0:03:17]} 50. Be1 {[%emt 0:00:00]} Rxa3 {[%emt 0:03:49]} 51. Rxa3 {[%emt 0:00:00]} Ra8 {[%emt 0:00:05]} 52. Bb4 {[%emt 0:00:00]} Ne5 {[%emt 0:00:18]} 53. Bc5 {[%emt 0:00:00]} Nc6 {[%emt 0:02:17]} 54. Ra6 {[%emt 0:00:00]} Nxa7 {[%emt 0:00:39]} 55. Rxa7 {[%emt 0:00:00]} Rc8 {[%emt 0:00:04]} 56. Ra5 {[%emt 0:00:00]} Rd8 {[%emt 0:00:21]} 57. Kh2 {[%emt 0:00:50]} Rd5 {[%emt 0:00:25]} 58. Bb6 {[%emt 0:00:00]} Rd6 {[%emt 0:00:22]} 59. Be3 {[%emt 0:00:00]} Rd3 {[%emt 0:00:07]} 60. Bf4 {[%emt 0:00:00]} f6 {[%emt 0:01:19]} 61. g3 {[%emt 0:00:00]} Rb3 {[%emt 0:01:09]} 62. Kh3 {[%emt 0:00:00]} Rb1 {[%emt 0:00:22]} 63. Rc5 {[%emt 0:00:00]} Rh1+ {[%emt 0:00:34]} 64. Kg2 {[%emt 0:00:00]} Ra1 {[%emt 0:00:25]} 65. Kf3 {[%emt 0:00:00]} Ra3+ {[%emt 0:00:43]} 66. Be3 {[%emt 0:00:00]} Ra4 {[%emt 0:00:11]} 67. Rd5 {[%emt 0:00:00]} Rb4 {[%emt 0:00:46]} 68. Bd4 {[%emt 0:00:00]} Rb3+ {[%emt 0:00:13]} 69. Kf4 {[%emt 0:00:00]} Rb7 {[%emt 0:01:31]} 70. Rd6 {[%emt 0:00:00]} Rb3 {[%emt 0:01:15]} 71. Rd7 {[%emt 0:00:00]} Kh6 {[%emt 0:00:38]} 72. Bc5 {[%emt 0:00:00]} Rb8 {[%emt 0:00:09]} 73. Ke4 {[%emt 0:00:00]} Re8+ {[%emt 0:00:03]} 74. Re7 {[%emt 0:00:00]} Rd8 {[%emt 0:00:05]} 75. Bb6 {[%emt 0:00:00]} Rb8 {[%emt 0:00:07]} 76. Be3+ {[%emt 0:00:00]} Kh7 {[%emt 0:00:01]} 77. Kd5 {[%emt 0:00:00]} Rb4 {[%emt 0:00:16]} 78. Re4 {[%emt 0:00:00]} Rb8 {[%emt 0:00:23]} 79. Kd6 {[%emt 0:00:00]} Rb5 {[%emt 0:00:49]} 80. Ke6 {[%emt 0:00:00]} Ra5 {[%emt 0:00:11]} 81. Bf4 {[%emt 0:00:00]} g6 {[%emt 0:02:15]} 82. Rd4 {[%emt 0:02:48]} Rxf5 {[%emt 0:00:27]} 83. Rd7+ {[%emt 0:00:04]} Kg8 {[%emt 0:00:11]} 84. Bh6 {[%emt 0:00:36]} Rf3 {[%emt 0:00:34]} 85. Rg7+ {[%emt 0:00:42]} Kh8 {[%emt 0:00:01]} 86. Rxg6 {[%emt 0:00:22]} Kh7 {[%emt 0:00:09]} 87. Kf7 {[%emt 0:00:15]} Ra3 {[%emt 0:00:16]} 88. Rxf6 {[%emt 0:00:33]} Ra7+ {[%emt 0:00:31]} 89. Ke8 {[%emt 0:00:05]} Ra8+ {[%emt 0:00:32]} 90. Kd7 {[%emt 0:00:06]} Ra7+ {[%emt 0:00:03]} 91. Kc8 {[%emt 0:00:05]} Ra4 {[%emt 0:01:33]} 92. Bf4 {[%emt 0:00:16]} Ra5 {[%emt 0:00:53]} 93. Re6 {[%emt 0:01:29]} Rf5 {[%emt 0:00:40]} 94. Kd7 {[%emt 0:01:25]} Kg7 {[%emt 0:00:34]} 95. Kd6 {[%emt 0:03:44]} h4 {[%emt 0:01:00]} 96. Bh6+ {[%emt 0:01:06]} Kf7 {[%emt 0:00:31]} 97. gxh4 {[%emt 0:00:22]} Ra5 {[%emt 0:00:07]} 98. Re7+ {[%emt 0:00:06]} Kg6 {[%emt 0:00:12]} 99. Bg5 {[%emt 0:00:09]} Rf5 {[%emt 0:00:41]} 100. Re5 {[%emt 0:00:48]} Rf1 {[%emt 0:00:11]} 101. Re6+ {[%emt 0:00:30]} Kh5 {[%emt 0:00:08]} 102. Ke7 {[%emt 0:00:15]} Rf2 {[%emt 0:00:28]} 103. Rf6 {[%emt 0:00:11]} Rb2 {[%emt 0:00:18]} 104. Rh6+ {[%emt 0:00:43]} Kg4 {[%emt 0:00:02]} 105. Kf7 {[%emt 0:00:14]} Rb7+ {[%emt 0:00:37]} 106. Kg6 {[%emt 0:00:07]} Rb8 {[%emt 0:00:32]} 107. Bf6 {[%emt 0:01:01]} 1-0

[Event "Caplin Hastings Masters 2023-24"]
[Site "Hastings"]
[Date "2024.01.04"]
[Round "8.17"]
[White "Unuk, Laura"]
[Black "Evenshaug, Amadeus Hestvik"]
[Result "1-0"]
[ECO "B31"]
[WhiteElo "2345"]
[BlackElo "2041"]
[Annotator "RC"]
[PlyCount "89"]
[EventDate "2023.12.18"]
[EventType "swiss"]
[EventCountry "ENG"]
[SourceTitle "playchess.com"]
[Source "ChessBase"]
[SourceQuality "1"]
[TimeControl "40/6000+30:3000+30"]

1. e4 {[%emt 0:02:34]} c5 {[%emt 0:01:37]} 2. Nf3 {[%emt 0:00:07]} Nc6 {[%emt 0:02:25]} 3. Bb5 {[%emt 0:03:27]} g6 {[%emt 0:00:30]} 4. O-O {[%emt 0:06:58]} Bg7 {[%emt 0:00:13]} 5. Qe2 {[%emt 0:01:06]} Nf6 {[%emt 0:07:09]} 6. d3 {[%emt 0:11:00]} O-O {[%emt 0:01:19]} 7. e5 {[%emt 0:02:51]} Nd5 {[%emt 0:03:05]} 8. h3 {[%emt 0:10:45]} Nc7 {[%emt 0:21:24]} 9. Bxc6 {[%emt 0:06:03]} dxc6 {[%emt 0:00:28]} 10. c3 {[%emt 0:03:14]} Ne6 {[%emt 0:09:56]} 11. Na3 {[%emt 0:11:22]} b6 {[%emt 0:04:45]} 12. Be3 {[%emt 0:05:00]} Ba6 {[%emt 0:02:47]} 13. Rad1 {[%emt 0:00:28]} Qc7 {[%emt 0:02:09]} 14. Bc1 {[%emt 0:04:53]} Rad8 {[%emt 0:02:38]} 15. Rfe1 {[%emt 0:03:49]} Rd5 {[%emt 0:05:27]} 16. Nc2 {[%emt 0:03:23]} Rfd8 {[%emt 0:00:28]} 17. c4 {[%emt 0:01:17]} R5d7 {[%emt 0:00:32]} 18. b3 {[%emt 0:02:37]} Bb7 {[%emt 0:04:28]} 19. Ng5 {[%emt 0:04:37]} Bc8 {[%emt 0:22:13]} 20. Nxe6 {[%emt 0:03:31]} fxe6 {[%emt 0:00:06]} 21. h4 {[%emt 0:03:46]} Rf8 {[%emt 0:07:23]} 22. Bb2 {[%emt 0:05:04]} Rdd8 {[%emt 0:01:05]} 23. h5 {[%emt 0:04:59]} gxh5 {[%emt 0:00:20]} 24. Qxh5 {[%emt 0:00:10]} Rf5 {[%emt 0:00:14]} 25. Qg4 {[%emt 0:00:53]} Rdf8 {[%emt 0:01:10]} 26. Rd2 {[%emt 0:01:35]} Kh8 {[%emt 0:01:07]} 27. Re4 {[%emt 0:01:13]} Bh6 {[%emt 0:04:32]} 28. Rde2 {[%emt 0:01:15]} Rg8 {[%emt 0:00:32]} 29. Qh3 {[%emt 0:00:48]} Bg5 {[%emt 0:00:24]} 30. Ne1 {[%emt 0:02:40]} Bd7 {[%emt 0:00:33]} 31. Nf3 {[%emt 0:01:05]} Be8 {[%emt 0:00:27]} 32. Rg4 {[%emt 0:01:07]} Bf7 {[%emt 0:01:31]} 33. Ree4 {[%emt 0:00:53]} Qd8 {[%emt 0:00:52]} 34. d4 {[%emt 0:00:58]} Rg6 {[%emt 0:01:55]} 35. Nxg5 {[%emt 0:01:10]} Rfxg5 {[%emt 0:00:21]} 36. Rxg5 {[%emt 0:00:14]} Rxg5 {[%emt 0:00:05]} 37. Bc1 {[%emt 0:01:02]} Rh5 {[%emt 0:01:55]} 38. Qe3 {[%emt 0:00:34]} Bg6 {[%emt 0:00:27]} 39. Rf4 {[%emt 0:00:43]} Rf5 {[%emt 0:00:30]} 40. Rg4 {[%emt 0:00:33]} Rf8 {[%emt 0:00:51]} 41. Rxg6 {[%emt 0:07:16]} hxg6 {[%emt 0:01:48]} 42. Qh6+ {[%emt 0:00:28]} Kg8 {[%emt 0:00:05]} 43. Qxg6+ {[%emt 0:00:05]} Kh8 {[%emt 0:00:03]} 44. Qh5+ {[%emt 0:00:53]} Kg8 {[%emt 0:03:55]} 45. Bh6 {[%emt 0:00:51]} 1-0

[Event "Caplin Hastings Masters 2023-24"]
[Site "Hastings"]
[Date "2024.01.04"]
[Round "8.18"]
[White "Gimenez Menchon, Cesar"]
[Black "Waldhausen Gordon, Frederick"]
[Result "0-1"]
[ECO "B22"]
[WhiteElo "2088"]
[BlackElo "2338"]
[Annotator "RC"]
[PlyCount "100"]
[EventDate "2023.12.18"]
[EventType "swiss"]
[EventCountry "ENG"]
[SourceTitle "playchess.com"]
[Source "ChessBase"]
[SourceQuality "1"]
[TimeControl "40/6000+30:3000+30"]

1. e4 {[%emt 0:01:20]} c5 {[%emt 0:00:05]} 2. c3 {[%emt 0:00:05]} Nf6 {[%emt 0:00:02]} 3. e5 {[%emt 0:00:38]} Nd5 {[%emt 0:00:04]} 4. Nf3 {[%emt 0:00:05]} d6 {[%emt 0:00:03]} 5. Bb5+ {[%emt 0:00:27]} Bd7 {[%emt 0:00:08]} 6. Bc4 {[%emt 0:00:03]} e6 {[%emt 0:00:05]} 7. d4 {[%emt 0:00:20]} Bc6 {[%emt 0:00:14]} 8. O-O {[%emt 0:00:23]} cxd4 {[%emt 0:01:41]} 9. exd6 {[%emt 0:12:09]} Nb6 {[%emt 0:05:17]} 10. Bb3 {[%emt 0:10:47]} dxc3 {[%emt 0:01:21]} 11. Nxc3 {[%emt 0:00:44]} Bxd6 {[%emt 0:01:27]} 12. Ng5 {[%emt 0:08:03]} O-O {[%emt 0:20:56]} 13. Qc2 {[%emt 0:09:32]} g6 {[%emt 0:01:52]} 14. Rd1 {[%emt 0:00:23]} Qc7 {[%emt 0:02:47]} 15. Rxd6 {[%emt 0:09:54]} Qxd6 {[%emt 0:00:35]} 16. Nge4 {[%emt 0:05:46]} Qe5 {[%emt 0:03:24]} 17. Bh6 {[%emt 0:01:16]} Rc8 {[%emt 0:02:30]} 18. Rd1 {[%emt 0:03:46]} N8d7 {[%emt 0:09:50]} 19. Qd2 {[%emt 0:13:39]} Bxe4 {[%emt 0:16:06]} 20. Re1 {[%emt 0:00:10]} Nf6 {[%emt 0:00:40]} 21. f3 {[%emt 0:04:28]} Nc4 {[%emt 0:04:16]} 22. Bxc4 {[%emt 0:13:43]} Rxc4 {[%emt 0:00:13]} 23. fxe4 {[%emt 0:00:29]} Qd4+ {[%emt 0:05:31]} 24. Qxd4 {[%emt 0:01:20]} Rxd4 {[%emt 0:00:09]} 25. Bg5 {[%emt 0:00:31]} Nd7 {[%emt 0:01:17]} 26. h3 {[%emt 0:03:21]} f6 {[%emt 0:02:12]} 27. Be3 {[%emt 0:00:47]} Rc4 {[%emt 0:00:57]} 28. Rd1 {[%emt 0:02:05]} Ne5 {[%emt 0:01:16]} 29. g4 {[%emt 0:00:45]} g5 {[%emt 0:01:48]} 30. Kg2 {[%emt 0:01:20]} a6 {[%emt 0:02:42]} 31. Rd6 {[%emt 0:00:33]} Rc6 {[%emt 0:00:32]} 32. Rd1 {[%emt 0:01:25]} b5 {[%emt 0:00:28]} 33. Kg3 {[%emt 0:01:39]} h6 {[%emt 0:01:32]} 34. Ne2 {[%emt 0:04:13]} Nc4 {[%emt 0:02:27]} 35. Bc1 {[%emt 0:00:39]} Rd6 {[%emt 0:00:15]} 36. Rf1 {[%emt 0:00:26]} Rd3+ {[%emt 0:00:09]} 37. Kh2 {[%emt 0:00:16]} Kg7 {[%emt 0:01:20]} 38. Ng3 {[%emt 0:00:07]} Kg6 {[%emt 0:00:25]} 39. Nh5 {[%emt 0:00:50]} Rf8 {[%emt 0:00:11]} 40. b3 {[%emt 0:00:16]} Nd2 {[%emt 0:00:29]} 41. Bxd2 {[%emt 0:07:47]} Rxd2+ {[%emt 0:00:49]} 42. Kg3 {[%emt 0:00:06]} Rxa2 {[%emt 0:04:18]} 43. e5 {[%emt 0:00:07]} f5 {[%emt 0:00:32]} 44. Rc1 {[%emt 0:00:34]} Rd8 {[%emt 0:00:52]} 45. Rc3 {[%emt 0:00:22]} b4 {[%emt 0:00:26]} 46. Rf3 {[%emt 0:00:34]} f4+ {[%emt 0:00:47]} 47. Nxf4+ {[%emt 0:00:09]} gxf4+ {[%emt 0:00:05]} 48. Rxf4 {[%emt 0:00:01]} Rd3+ {[%emt 0:00:21]} 49. Kh4 {[%emt 0:00:05]} Rh2 {[%emt 0:00:21]} 50. Rf6+ {[%emt 0:00:07]} Kg7 {[%emt 0:00:04]} 0-1

[Event "Caplin Hastings Masters 2023-24"]
[Site "Hastings"]
[Date "2024.01.04"]
[Round "8.19"]
[White "Rudd, Jack"]
[Black "Lahlum, Hans Olav"]
[Result "1-0"]
[ECO "D31"]
[WhiteElo "2314"]
[BlackElo "2037"]
[Annotator "RC"]
[PlyCount "71"]
[EventDate "2023.12.18"]
[EventType "swiss"]
[EventCountry "ENG"]
[SourceTitle "playchess.com"]
[Source "ChessBase"]
[SourceQuality "1"]
[TimeControl "40/6000+30:3000+30"]

1. d4 {[%emt 0:00:01]} d5 {[%emt 0:00:07]} 2. c4 {[%emt 0:00:05]} e6 {[%emt 0:00:02]} 3. Nc3 {[%emt 0:00:06]} c6 {[%emt 0:00:04]} 4. Nf3 {[%emt 0:00:05]} dxc4 {[%emt 0:00:07]} 5. e3 {[%emt 0:00:15]} b5 {[%emt 0:00:07]} 6. a4 {[%emt 0:00:06]} Bb4 {[%emt 0:00:04]} 7. Bd2 {[%emt 0:00:19]} a5 {[%emt 0:00:06]} 8. axb5 {[%emt 0:00:06]} Bxc3 {[%emt 0:00:06]} 9. Bxc3 {[%emt 0:00:04]} cxb5 {[%emt 0:00:05]} 10. b3 {[%emt 0:00:06]} Bb7 {[%emt 0:00:06]} 11. bxc4 {[%emt 0:00:05]} b4 {[%emt 0:00:04]} 12. Bb2 {[%emt 0:00:06]} Nf6 {[%emt 0:00:07]} 13. Bd3 {[%emt 0:00:06]} Nbd7 {[%emt 0:00:04]} 14. O-O {[%emt 0:00:07]} O-O {[%emt 0:00:07]} 15. Re1 {[%emt 0:00:34]} Be4 {[%emt 0:02:18]} 16. Bf1 {[%emt 0:01:22]} Qc7 {[%emt 0:03:42]} 17. Nd2 {[%emt 0:01:35]} Bb7 {[%emt 0:02:13]} 18. c5 {[%emt 0:01:18]} Qc6 {[%emt 0:12:06]} 19. Nc4 {[%emt 0:00:56]} a4 {[%emt 0:05:58]} 20. Qd2 {[%emt 0:00:46]} a3 {[%emt 0:08:30]} 21. Bc1 {[%emt 0:00:08]} Ra4 {[%emt 0:01:50]} 22. Qc2 {[%emt 0:02:25]} Rb8 {[%emt 0:15:15]} 23. Bd2 {[%emt 0:01:43]} Ba8 {[%emt 0:04:27]} 24. Reb1 {[%emt 0:00:48]} e5 {[%emt 0:13:31]} 25. dxe5 {[%emt 0:00:15]} Ne4 {[%emt 0:02:22]} 26. Nd6 {[%emt 0:05:53]} Nxd2 {[%emt 0:06:44]} 27. Qxd2 {[%emt 0:01:18]} Nxc5 {[%emt 0:04:46]} 28. f3 {[%emt 0:02:15]} b3 {[%emt 0:08:16]} 29. Bb5 {[%emt 0:00:37]} b2 {[%emt 0:04:00]} 30. Bxc6 {[%emt 0:01:23]} bxa1=Q {[%emt 0:01:09]} 31. Rxa1 {[%emt 0:00:05]} Bxc6 {[%emt 0:01:01]} 32. Qc2 {[%emt 0:00:26]} Rab4 {[%emt 0:10:34]} 33. Qxc5 {[%emt 0:00:27]} Rb1+ {[%emt 0:00:17]} 34. Rxb1 {[%emt 0:00:09]} Rxb1+ {[%emt 0:00:04]} 35. Kf2 {[%emt 0:00:06]} Rb2+ {[%emt 0:02:23]} 36. Kg3 {[%emt 0:00:07]} 1-0